bitfinex/quotes_BTCUSD_20250908
["timestamp","ask_amount","ask_price","bid_price","bid_amount"]
[1757300008212,0.42850511,111260.0,111250.0,0.20383483]
[1757300009212,0.42850511,111260.0,111250.0,0.01]
[1757300009433,0.43148511,111260.0,111250.0,0.01]
[1757300010297,0.62014994,111260.0,111250.0,0.01]
[1757300011374,0.80881477,111260.0,111250.0,0.01]
[1757300011774,0.64715149,111260.0,111250.0,0.01]
[1757300018723,0.64691149,111260.0,111250.0,0.01]
[1757300023677,0.45824666,111260.0,111250.0,0.01]
[1757300023880,0.64691149,111260.0,111250.0,0.01]
[1757300026252,0.45824666,111260.0,111250.0,0.01]
[1757300026459,0.64691149,111260.0,111250.0,0.01]
[1757300030313,0.45824666,111260.0,111250.0,0.01]
[1757300030527,0.64691149,111260.0,111250.0,0.01]
[1757300032596,0.68768471,111260.0,111250.0,0.01]
[1757300035833,0.64691149,111260.0,111250.0,0.01]
[1757300042554,0.49931903,111260.0,111250.0,0.01]
[1757300042719,0.68778386,111260.0,111250.0,0.01]
[1757300043398,0.34477903,111260.0,111250.0,0.01205]
[1757300043642,0.68480386,111260.0,111250.0,0.01205]
[1757300043877,0.68480386,111260.0,111250.0,0.01]
[1757300044278,0.68794386,111260.0,111250.0,0.01]
[1757300045107,0.64687149,111260.0,111250.0,0.01]
[1757300046587,0.64687149,111260.0,111250.0,1e-08]
[1757300046588,1.52437098,111260.0,111250.0,1e-08]
[1757300046788,0.17979144,111240.0,111230.0,0.01]
[1757300047048,0.80035709,111240.0,111230.0,0.01]
[1757300047194,0.61384226,111240.0,111230.0,0.01]
[1757300047386,0.62586537,111240.0,111230.0,0.01]
[1757300047607,0.84153717,111240.0,111230.0,0.01]
[1757300047991,0.84153717,111240.0,111230.0,0.01013947]
[1757300049402,0.84453717,111240.0,111230.0,0.01013947]
[1757300050992,0.84653717,111240.0,111230.0,0.01013947]
[1757300052453,0.65797187,111240.0,111230.0,0.01013947]
[1757300055799,0.84673623,111240.0,111230.0,0.01013947]
[1757300056012,0.86966623,111240.0,111230.0,0.01013947]
[1757300058829,1.25966623,111240.0,111230.0,1e-08]
[1757300059069,1.27903649,111240.0,111230.0,1e-08]
[1757300061206,1.37095248,111240.0,111230.0,1e-08]
[1757300061497,1.27903649,111240.0,111230.0,1e-08]
[1757300063147,1.12771649,111240.0,111230.0,1e-08]
[1757300063451,1.27899649,111240.0,111230.0,1e-08]
[1757300065639,1.27895649,111240.0,111230.0,1e-08]
[1757300065834,1.12771649,111240.0,111230.0,1e-08]
[1757300065980,1.27895649,111240.0,111230.0,1e-08]
[1757300067492,1.37087248,111240.0,111230.0,1e-08]
[1757300068322,1.27895649,111240.0,111230.0,1e-08]
[1757300069817,1.12771649,111240.0,111230.0,1e-08]
[1757300070455,1.29568129,111240.0,111230.0,1e-08]
[1757300073312,1.29560129,111240.0,111230.0,1e-08]
[1757300074292,1.31985716,111240.0,111230.0,1e-08]
[1757300074508,1.41177315,111240.0,111230.0,1e-08]
[1757300075195,1.31985716,111240.0,111230.0,1e-08]
[1757300078327,1.16877716,111240.0,111230.0,1e-08]
[1757300078674,1.31985716,111240.0,111230.0,1e-08]
[1757300079282,1.29692716,111240.0,111230.0,1e-08]
[1757300080703,1.33556514,111240.0,111230.0,1e-08]
[1757300080910,1.32924741,111240.0,111230.0,1e-08]
[1757300081200,1.29692716,111240.0,111230.0,1e-08]
[1757300081403,1.32924741,111240.0,111230.0,1e-08]
[1757300082146,1.29692716,111240.0,111230.0,1e-08]
[1757300082280,1.32924741,111240.0,111230.0,1e-08]
[1757300083146,1.33556647,111240.0,111230.0,1e-08]
[1757300083358,1.33556736,111240.0,111230.0,1e-08]
[1757300083962,1.42748335,111240.0,111230.0,1e-08]
[1757300084333,1.45245335,111240.0,111230.0,1e-08]
[1757300084735,1.36053736,111240.0,111230.0,1e-08]
[1757300088201,1.33628149,111240.0,111230.0,1e-08]
[1757300088410,1.11948713,111240.0,111230.0,1e-08]
[1757300088590,1.14374355,111240.0,111230.0,1e-08]
[1757300088794,1.33553791,111240.0,111230.0,1e-08]
[1757300090117,1.29187123,111240.0,111230.0,1e-08]
[1757300090334,1.3356032,111240.0,111230.0,1e-08]
[1757300095965,1.30328295,111240.0,111230.0,1e-08]
[1757300096383,1.3356032,111240.0,111230.0,1e-08]
[1757300098790,1.32928325,111240.0,111230.0,1e-08]
[1757300098994,1.30328957,111240.0,111230.0,1e-08]
[1757300099622,1.11452521,111240.0,111230.0,1e-08]
[1757300101141,1.30328957,111240.0,111230.0,1e-08]
[1757300101340,1.35961982,111240.0,111230.0,1e-08]
[1757300101545,1.17085546,111240.0,111230.0,1e-08]
[1757300102467,1.35961982,111240.0,111230.0,1e-08]
[1757300105641,1.48598438,111240.0,111230.0,1e-08]
[1757300106093,1.4944209,111240.0,111230.0,1e-08]
[1757300106334,1.47965781,111240.0,111230.0,1e-08]
[1757300106576,1.48598388,111240.0,111230.0,1e-08]
[1757300106866,1.57789987,111240.0,111230.0,1e-08]
[1757300107106,1.57589987,111240.0,111230.0,1e-08]
[1757300107348,1.57289987,111240.0,111230.0,1e-08]
[1757300107551,1.57789987,111240.0,111230.0,1e-08]
[1757300107967,1.58089987,111240.0,111230.0,1e-08]
[1757300108175,1.53239049,111240.0,111230.0,1e-08]
[1757300109090,1.61083869,111240.0,111230.0,1e-08]
[1757300109335,1.5833893,111240.0,111230.0,1e-08]
[1757300110477,2.0214893,111240.0,111230.0,1e-08]
[1757300111466,1.99678797,111240.0,111230.0,1e-08]
[1757300112371,1.75375198,111240.0,111230.0,1e-08]
[1757300112582,1.90483198,111240.0,111230.0,1e-08]
[1757300113529,1.6711188,111240.0,111230.0,1e-08]
[1757300113739,1.81137378,111240.0,111230.0,1e-08]
[1757300114188,1.47152942,111240.0,111230.0,1e-08]
[1757300114450,1.78265918,111240.0,111230.0,0.00498001]
[1757300114629,1.63157918,111240.0,111230.0,1e-08]
[1757300114800,1.70033893,111240.0,111230.0,1e-08]
[1757300115024,1.78265918,111240.0,111230.0,1e-08]
[1757300115227,1.78560918,111240.0,111230.0,1e-08]
[1757300115737,1.74696286,111240.0,111230.0,1e-08]
[1757300116344,1.74701486,111240.0,111230.0,1e-08]
[1757300118932,1.81538865,111240.0,111230.0,1e-08]
[1757300119139,1.8477089,111240.0,111230.0,1e-08]
[1757300119544,1.7856564,111240.0,111230.0,1e-08]
[1757300120158,1.97444096,111240.0,111230.0,1e-08]
[1757300120917,2.00189035,111240.0,111230.0,1e-08]
[1757300121141,2.02648035,111240.0,111230.0,1e-08]
[1757300121344,1.99903096,111240.0,111230.0,1e-08]
[1757300121788,1.8102464,111240.0,111230.0,1e-08]
[1757300122514,2.09094695,111240.0,111230.0,1e-08]
[1757300122733,3.00699296,111240.0,111230.0,1e-08]
[1757300122915,2.8182084,111240.0,111230.0,1e-08]
[1757300123749,2.7683824,111240.0,111230.0,1e-08]
[1757300123950,2.7323824,111240.0,111230.0,1e-08]
[1757300124359,2.89689196,111240.0,111230.0,1e-08]
[1757300124579,2.7081074,111240.0,111230.0,1e-08]
[1757300124873,3.02868691,111240.0,111230.0,1e-08]
[1757300125276,2.83990235,111240.0,111230.0,1e-08]
[1757300125429,3.02868691,111240.0,111230.0,1e-08]
[1757300126774,2.71723578,111240.0,111230.0,1e-08]
[1757300126916,1.9638394,111240.0,111230.0,1e-08]
[1757300127783,1.9138394,111240.0,111230.0,1e-08]
[1757300127940,1.9638394,111240.0,111230.0,1e-08]
[1757300128572,2.01234878,111240.0,111230.0,1e-08]
[1757300129185,2.10426477,111240.0,111230.0,1e-08]
[1757300129917,2.05426477,111240.0,111230.0,1e-08]
[1757300130116,2.10426477,111240.0,111230.0,1e-08]
[1757300131933,2.10426953,111240.0,111230.0,1e-08]
[1757300132577,2.10425817,111240.0,111230.0,1e-08]
[1757300132772,2.05574879,111240.0,111230.0,1e-08]
[1757300133218,2.10425817,111240.0,111230.0,1e-08]
[1757300133708,2.05574879,111240.0,111230.0,1e-08]
[1757300133862,2.10425817,111240.0,111230.0,1e-08]
[1757300134790,2.01234218,111240.0,111230.0,1e-08]
[1757300136453,1.96234218,111240.0,111230.0,1e-08]
[1757300136599,2.01234218,111240.0,111230.0,1e-08]
[1757300136985,1.96234218,111240.0,111230.0,1e-08]
[1757300137234,2.01234218,111240.0,111230.0,1e-08]
[1757300138110,2.10407817,111240.0,111230.0,1e-08]
[1757300138961,2.01216218,111240.0,111230.0,1e-08]
[1757300142911,1.98757218,111240.0,111230.0,1e-08]
[1757300143121,1.98757453,111240.0,111230.0,1e-08]
[1757300148389,1.99600928,111240.0,111230.0,1e-08]
[1757300149710,2.18479384,111240.0,111230.0,1e-08]
[1757300150169,2.18480809,111240.0,111230.0,1e-08]
[1757300151553,2.27672408,111240.0,111230.0,1e-08]
[1757300151751,2.18480809,111240.0,111230.0,1e-08]
[1757300152725,2.25388809,111240.0,111230.0,1e-08]
[1757300153758,2.23335309,111240.0,111230.0,1e-08]
[1757300154741,2.18335309,111240.0,111230.0,1e-08]
[1757300154941,2.23335309,111240.0,111230.0,1e-08]
[1757300155911,2.23335593,111240.0,111230.0,1e-08]
[1757300157633,2.22492394,111240.0,111230.0,1e-08]
[1757300158766,2.22492387,111240.0,111230.0,1e-08]
[1757300159712,2.17492387,111240.0,111230.0,1e-08]
[1757300160936,0.2298076,111230.0,111220.0,1e-08]
[1757300161137,0.2298076,111230.0,111200.0,0.08404212]
[1757300161138,0.17983994,111210.0,111200.0,0.08404212]
[1757300161383,0.68273049,111210.0,111200.0,0.08613757]
[1757300161567,0.51889077,111210.0,111200.0,0.08613757]
[1757300161772,0.70767533,111210.0,111200.0,0.08613757]
[1757300161981,0.72711393,111210.0,111200.0,0.01552545]
[1757300163154,0.72711161,111210.0,111200.0,0.01552545]
[1757300163341,0.70767533,111210.0,111200.0,0.01552545]
[1757300164055,0.70767533,111210.0,111200.0,0.01652545]
[1757300165027,0.70767533,111210.0,111200.0,0.01752545]
[1757300165549,0.74886728,111210.0,111200.0,0.01752545]
[1757300165796,0.36785077,111210.0,111200.0,0.01752545]
[1757300166009,0.44981077,111210.0,111200.0,0.01752545]
[1757300166259,0.33087994,111210.0,111200.0,0.20855821]
[1757300166490,0.33087994,111210.0,111200.0,0.20631001]
[1757300167358,0.33087994,111210.0,111200.0,0.01752545]
[1757300168874,0.17983994,111210.0,111200.0,0.57495068]
[1757300169087,0.17983994,111210.0,111200.0,0.19738156]
[1757300169288,0.17983994,111210.0,111200.0,0.59949068]
[1757300169495,0.33087853,111220.0,111200.0,0.62649947]
[1757300169735,0.33087853,111220.0,111210.0,0.19406255]
[1757300169944,0.33087853,111220.0,111210.0,0.19181456]
[1757300170310,0.33087853,111220.0,111210.0,0.19378456]
[1757300170880,0.33187853,111220.0,111210.0,0.19378456]
[1757300171353,0.21580677,111230.0,111210.0,0.3736245]
[1757300171722,0.34011798,111230.0,111220.0,0.19406235]
[1757300171945,0.34011798,111230.0,111220.0,0.19378456]
[1757300172445,0.35815812,111240.0,111220.0,0.58693289]
[1757300172699,0.1798076,111230.0,111220.0,0.39511833]
[1757300172911,0.33115144,111240.0,111220.0,0.42212131]
[1757300173122,0.001,111230.0,111220.0,0.42212131]
[1757300173362,0.001,111230.0,111220.0,0.42515131]
[1757300173802,0.001,111230.0,111220.0,0.63587469]
[1757300174027,0.003,111230.0,111220.0,0.63587469]
[1757300174242,0.002,111230.0,111220.0,0.63487469]
[1757300174468,0.33115144,111240.0,111220.0,0.44798969]
[1757300174689,0.1798076,111230.0,111220.0,0.25627557]
[1757300174904,0.1798076,111230.0,111220.0,0.40959557]
[1757300175396,0.1798076,111230.0,111220.0,0.41062557]
[1757300175825,0.1798076,111230.0,111220.0,0.41162557]
[1757300176061,0.1798076,111230.0,111220.0,0.60030969]
[1757300177299,0.1798076,111230.0,111220.0,0.59930969]
[1757300177911,0.1798076,111230.0,111220.0,0.60130969]
[1757300179244,0.1798076,111230.0,111220.0,0.44998969]
[1757300179445,0.1798076,111230.0,111220.0,0.42136592]
[1757300179962,0.1798076,111230.0,111220.0,0.27016592]
[1757300180115,0.1798076,111230.0,111220.0,0.39678592]
[1757300180340,0.1798076,111230.0,111220.0,0.2081018]
[1757300180746,0.1798076,111230.0,111220.0,0.57660969]
[1757300181517,0.1798076,111230.0,111220.0,0.39678592]
[1757300181674,0.1798076,111230.0,111220.0,0.57660969]
[1757300183775,0.1798076,111230.0,111220.0,0.42544969]
[1757300184001,0.1798076,111230.0,111220.0,0.39674592]
[1757300184497,0.1798076,111230.0,111220.0,0.57656969]
[1757300184710,0.1798076,111230.0,111220.0,0.39674592]
[1757300185517,0.1798076,111230.0,111220.0,0.57656969]
[1757300185760,0.1798076,111230.0,111220.0,0.39674592]
[1757300186404,0.1798076,111230.0,111220.0,0.03600298]
[1757300187194,0.1798076,111230.0,111220.0,0.2246871]
[1757300188814,0.1798076,111230.0,111220.0,0.03600298]
[1757300189573,0.1798076,111230.0,111220.0,0.009]
[1757300190416,0.1798076,111230.0,111220.0,0.007]
[1757300190798,0.1798076,111230.0,111220.0,0.006]
[1757300191665,0.1798076,111230.0,111220.0,0.007]
[1757300194724,0.3308476,111230.0,111220.0,0.007]
[1757300195980,0.1798076,111230.0,111220.0,0.007]
[1757300196178,0.3308476,111230.0,111220.0,0.007]
[1757300198650,0.3308476,111230.0,111220.0,0.00924779]
[1757300199783,0.1798076,111230.0,111220.0,0.00924779]
[1757300199980,0.1798076,111230.0,111220.0,0.37775568]
[1757300200220,0.1798076,111230.0,111220.0,0.52654789]
[1757300200436,0.17979144,111240.0,111220.0,0.55011789]
[1757300200642,0.1798076,111230.0,111220.0,0.37934259]
[1757300200854,0.1798076,111230.0,111220.0,0.56802671]
[1757300201039,0.17979144,111240.0,111220.0,0.59502942]
[1757300201249,0.17979144,111240.0,111230.0,0.00224759]
[1757300201408,0.17979144,111240.0,111230.0,0.00724759]
[1757300201620,0.18079144,111240.0,111230.0,0.18705519]
[1757300201818,0.18079144,111240.0,111230.0,0.1848076]
[1757300202315,0.17979144,111240.0,111230.0,0.37349172]
[1757300202659,0.18079144,111240.0,111230.0,0.37349172]
[1757300203897,0.18079144,111240.0,111230.0,0.19368412]
[1757300204150,0.17979144,111240.0,111230.0,0.20068412]
[1757300204670,0.17979144,111240.0,111230.0,0.1918076]
[1757300204856,0.18079144,111240.0,111230.0,0.1968076]
[1757300206961,0.18079144,111240.0,111230.0,0.017]
[1757300208152,0.18079144,111240.0,111230.0,0.1968076]
[1757300208827,0.18079144,111240.0,111230.0,0.017]
[1757300213363,0.18079144,111240.0,111230.0,0.01924759]
[1757300220425,0.18079144,111240.0,111230.0,0.017]
[1757300220658,0.36947556,111240.0,111230.0,0.017]
[1757300223352,0.001,111240.0,111230.0,0.40867813]
[1757300223573,0.001,111240.0,111230.0,0.40643054]
[1757300223796,0.001,111240.0,111230.0,0.43343029]
[1757300224231,0.001,111240.0,111230.0,0.24474617]
[1757300224672,0.18079144,111240.0,111230.0,0.24474617]
[1757300224882,0.001,111240.0,111230.0,0.24474617]
[1757300225813,0.001,111240.0,111230.0,0.39574617]
[1757300227637,0.18079144,111240.0,111230.0,0.22380735]
[1757300228223,0.18079144,111240.0,111230.0,0.37476735]
[1757300228662,0.18079144,111240.0,111230.0,0.22380735]
[1757300228835,0.18079144,111240.0,111230.0,0.37476735]
[1757300229533,0.001,111240.0,111230.0,0.37476735]
[1757300231703,0.001,111240.0,111230.0,0.56345147]
[1757300231947,0.001,111240.0,111230.0,0.41249147]
[1757300232146,0.001,111240.0,111230.0,0.56345147]
[1757300232719,0.001,111240.0,111230.0,0.39570617]
[1757300232939,0.001,111240.0,111230.0,1.09441795]
[1757300233426,0.001,111240.0,111230.0,1.11932795]
[1757300236309,0.001,111240.0,111230.0,1.11928199]
[1757300239596,0.001,111240.0,111230.0,0.93064383]
[1757300239796,0.001,111240.0,111230.0,1.11928199]
[1757300241036,0.001,111240.0,111230.0,1.30792015]
[1757300242882,0.001,111240.0,111230.0,1.70792015]
[1757300243094,0.001,111240.0,111230.0,1.63538845]
[1757300243771,0.001,111240.0,111230.0,2.03538845]
[1757300244175,0.38743021,111280.0,111260.0,0.2006839]
[1757300244382,0.38743021,111280.0,111270.0,0.00735678]
[1757300244592,0.38743021,111280.0,111270.0,0.18709974]
[1757300244815,0.38743021,111280.0,111270.0,0.18485296]
[1757300245871,0.38743021,111280.0,111270.0,0.00511]
[1757300246066,0.38743021,111280.0,111270.0,0.00735678]
[1757300246418,0.38943021,111280.0,111270.0,0.00735678]
[1757300247152,0.39848673,111280.0,111270.0,0.00735678]
[1757300247374,0.39948673,111280.0,111270.0,0.00735678]
[1757300248147,0.39043021,111280.0,111270.0,0.00735678]
[1757300248973,0.39043021,111280.0,111270.0,0.18485296]
[1757300250386,0.39043021,111280.0,111270.0,0.00511]
[1757300250592,0.39043021,111280.0,111270.0,0.00735678]
[1757300250798,0.38943021,111280.0,111270.0,0.00735678]
[1757300251069,0.39043021,111280.0,111270.0,0.00735678]
[1757300251256,0.38843021,111280.0,111270.0,0.00735678]
[1757300251759,0.38743021,111280.0,111270.0,0.00735678]
[1757300252119,0.38843021,111280.0,111270.0,0.00735678]
[1757300252295,0.19979205,111280.0,111270.0,0.00735678]
[1757300252531,0.38843021,111280.0,111270.0,0.00735678]
[1757300253797,0.38843021,111280.0,111270.0,0.18709974]
[1757300254035,0.38843021,111280.0,111270.0,0.18485296]
[1757300254284,0.53935021,111280.0,111270.0,0.00511]
[1757300254505,0.53935021,111280.0,111270.0,0.18485296]
[1757300254761,0.53935021,111280.0,111270.0,0.00511]
[1757300255369,0.53935021,111280.0,111270.0,0.00735678]
[1757300257955,0.53935021,111280.0,111270.0,0.00511]
[1757300261490,0.35071205,111280.0,111270.0,0.00511]
[1757300261714,0.53935021,111280.0,111270.0,0.00511]
[1757300261864,0.35071205,111280.0,111270.0,0.00511]
[1757300262467,0.53935021,111280.0,111270.0,0.00511]
[1757300263325,0.73013837,111280.0,111270.0,0.00511]
[1757300263579,0.17974296,111270.0,111260.0,0.02699336]
[1757300263861,0.17975912,111260.0,111250.0,0.00303]
[1757300264080,0.51927728,111260.0,111250.0,0.03002603]
[1757300264298,0.51927728,111260.0,111250.0,0.21188131]
[1757300264503,0.51927728,111260.0,111250.0,0.03210603]
[1757300265190,0.51927728,111260.0,111250.0,0.04110603]
[1757300265417,0.51927728,111260.0,111250.0,0.22088131]
[1757300266052,0.36839728,111260.0,111250.0,0.21188131]
[1757300266311,0.36939728,111260.0,111250.0,0.22388131]
[1757300266749,0.36939728,111260.0,111250.0,0.21888131]
[1757300267475,0.36839728,111260.0,111250.0,0.18298603]
[1757300267685,0.36839728,111260.0,111250.0,0.36276131]
[1757300268163,0.36839728,111260.0,111250.0,0.36976131]
[1757300272905,0.36838112,111270.0,111250.0,0.36976131]
[1757300273151,0.36838112,111270.0,111250.0,0.55536947]
[1757300273376,0.36838112,111270.0,111260.0,0.00312]
[1757300273559,0.36838112,111270.0,111260.0,0.00516]
[1757300275634,0.36938112,111270.0,111260.0,0.00516]
[1757300278230,0.52026112,111270.0,111260.0,0.00516]
[1757300280603,0.36938112,111270.0,111260.0,0.00516]
[1757300280814,0.52022112,111270.0,111260.0,0.00516]
[1757300281249,0.52022112,111270.0,111260.0,0.1871661]
[1757300281250,0.18074296,111270.0,111260.0,0.1871661]
[1757300281523,0.18074296,111270.0,111260.0,0.20585794]
[1757300281746,0.18074296,111270.0,111260.0,0.3944961]
[1757300282419,0.001,111270.0,111260.0,0.42148958]
[1757300283153,0.18074296,111270.0,111260.0,0.42148958]
[1757300283383,0.18074296,111270.0,111260.0,0.23285142]
[1757300283651,0.18074296,111270.0,111260.0,0.42148958]
[1757300284108,0.18074296,111270.0,111260.0,0.23285142]
[1757300284322,0.18074296,111270.0,111260.0,0.42148958]
[1757300284761,0.18074296,111270.0,111260.0,0.57232958]
[1757300287801,0.18074296,111270.0,111260.0,0.38369142]
[1757300287996,0.18074296,111270.0,111260.0,0.57232958]
[1757300291339,0.18074296,111270.0,111260.0,0.38369142]
[1757300291543,0.18074296,111270.0,111260.0,0.57232958]
[1757300291739,0.001,111270.0,111260.0,0.57232958]
[1757300294822,0.001,111270.0,111260.0,0.23285142]
[1757300295031,0.18074296,111270.0,111260.0,0.57228958]
[1757300295340,0.001,111270.0,111260.0,0.57228958]
[1757300296495,0.001,111270.0,111260.0,0.38365142]
[1757300296726,0.001,111270.0,111260.0,0.57223175]
[1757300297706,0.001,111270.0,111260.0,0.38365142]
[1757300300146,0.18074296,111270.0,111260.0,0.38365142]
[1757300302306,0.001,111270.0,111260.0,0.38365142]
[1757300304339,0.18074296,111270.0,111260.0,0.38365142]
[1757300304793,0.001,111270.0,111260.0,0.38365142]
[1757300309331,0.001,111270.0,111260.0,0.57223175]
[1757300309574,0.001,111270.0,111260.0,1.00414774]
[1757300309794,0.001,111270.0,111260.0,1.09327604]
[1757300310231,0.001,111270.0,111260.0,1.68185637]
[1757300310447,0.001,111270.0,111260.0,1.61758807]
[1757300310673,0.001,111270.0,111260.0,1.21758807]
[1757300311118,0.01,111280.0,111270.0,0.54068178]
[1757300311336,0.01,111280.0,111270.0,1.07403931]
[1757300311560,0.01,111280.0,111270.0,1.10420931]
[1757300311784,0.01,111280.0,111270.0,1.13119272]
[1757300312014,0.01,111280.0,111270.0,1.17068091]
[1757300312233,0.01,111280.0,111270.0,1.34428025]
[1757300312456,0.01,111280.0,111270.0,1.72144091]
[1757300312678,0.01,111280.0,111270.0,1.34828025]
[1757300312883,0.01,111280.0,111270.0,1.72544091]
[1757300314137,0.01,111280.0,111270.0,1.72844091]
[1757300315460,0.01,111280.0,111270.0,1.35128025]
[1757300315704,0.01,111280.0,111270.0,1.72844091]
[1757300316368,0.01,111280.0,111270.0,1.66416003]
[1757300318846,0.01,111280.0,111270.0,1.51340003]
[1757300319054,0.01,111280.0,111270.0,1.66412003]
[1757300322340,0.01,111280.0,111270.0,1.51340003]
[1757300322549,0.01,111280.0,111270.0,1.66412003]
[1757300323413,0.01,111280.0,111270.0,1.28695937]
[1757300323625,0.01,111280.0,111270.0,1.66412003]
[1757300325617,0.01,111280.0,111270.0,1.51340003]
[1757300325832,0.01,111280.0,111270.0,1.4506797]
[1757300326606,0.01,111280.0,111270.0,1.63926003]
[1757300326818,0.01,111280.0,111270.0,1.4506797]
[1757300327208,0.01,111280.0,111270.0,1.7138797]
[1757300329416,0.01,111280.0,111270.0,1.7138397]
[1757300333648,0.18972681,111280.0,111270.0,1.37457937]
[1757300333895,0.18972681,111280.0,111270.0,1.12525937]
[1757300333896,0.01,111280.0,111270.0,1.12525937]
[1757300336082,0.01,111280.0,111270.0,1.3138397]
[1757300338783,0.01,111280.0,111270.0,1.0506397]
[1757300339532,0.01,111280.0,111270.0,1.30350091]
[1757300340228,0.01,111280.0,111270.0,1.72726091]
[1757300341405,0.01,111280.0,111270.0,1.53868058]
[1757300344687,0.01,111280.0,111270.0,1.80188058]
[1757300348408,0.01,111280.0,111270.0,1.80188385]
[1757300349346,0.01,111280.0,111270.0,1.7375997]
[1757300349773,0.01,111280.0,111270.0,1.54901937]
[1757300350060,0.01,111280.0,111270.0,1.7375997]
[1757300353294,0.01,111280.0,111270.0,1.54901937]
[1757300353500,0.01,111280.0,111270.0,1.7375997]
[1757300354107,0.01,111280.0,111270.0,1.5869197]
[1757300354316,0.01,111280.0,111270.0,1.80184062]
[1757300355390,0.01,111280.0,111270.0,1.7375597]
[1757300355623,0.01,111280.0,111270.0,1.54897937]
[1757300355837,0.01,111280.0,111270.0,1.80184022]
[1757300356452,0.01,111280.0,111270.0,1.7375597]
[1757300356981,0.01,111280.0,111270.0,1.39833937]
[1757300357194,0.01,111280.0,111270.0,1.58950037]
[1757300358469,0.01,111280.0,111270.0,1.77802417]
[1757300358854,0.01,111280.0,111270.0,1.62738417]
[1757300359084,0.01,111280.0,111270.0,1.77802417]
[1757300359676,0.01,111280.0,111270.0,1.84706417]
[1757300362564,0.01,111280.0,111270.0,1.58386417]
[1757300364704,0.01,111280.0,111270.0,1.51958317]
[1757300367125,0.01,111280.0,111270.0,1.11958317]
[1757300367736,0.01,111280.0,111270.0,1.51958317]
[1757300369394,0.01,111280.0,111270.0,1.60018777]
[1757300369981,0.01,111280.0,111270.0,1.20018777]
[1757300370628,0.01,111280.0,111270.0,1.60018777]
[1757300373857,0.01,111280.0,111270.0,1.41166397]
[1757300374043,0.01,111280.0,111270.0,1.60018777]
[1757300381809,0.01,111280.0,111270.0,1.41166397]
[1757300382033,0.01,111280.0,111270.0,1.60010777]
[1757300382217,0.01,111280.0,111270.0,1.51950317]
[1757300383825,0.01,111280.0,111270.0,1.60010777]
[1757300387202,0.01,111280.0,111270.0,1.26102397]
[1757300387407,0.01,111280.0,111270.0,1.07594178]
[1757300387408,0.1985238,111280.0,111270.0,1.07594178]
[1757300387669,0.01,111280.0,111270.0,0.99533718]
[1757300387878,0.1985238,111280.0,111270.0,0.99533718]
[1757300388092,0.01,111280.0,111270.0,0.99533718]
[1757300388301,0.01,111280.0,111270.0,1.18386098]
[1757300389410,0.01,111280.0,111270.0,0.99533718]
[1757300389639,0.01,111280.0,111270.0,1.18386098]
[1757300389849,0.01,111280.0,111270.0,1.30802697]
[1757300390070,0.01,111280.0,111270.0,1.33269697]
[1757300390271,1e-08,111280.0,111270.0,1.46330157]
[1757300390677,0.01,111300.0,111290.0,0.72917328]
[1757300390878,0.01012573,111300.0,111290.0,1.03594026]
[1757300391058,0.01012573,111300.0,111290.0,1.04119026]
[1757300391482,0.01012573,111300.0,111290.0,1.46817024]
[1757300391889,0.01012573,111300.0,111290.0,1.59240305]
[1757300392308,0.01012573,111300.0,111290.0,1.48424299]
[1757300392449,0.01012573,111300.0,111290.0,1.40387925]
[1757300393288,0.01112573,111300.0,111290.0,1.40987925]
[1757300394087,0.01112573,111300.0,111290.0,1.40983925]
[1757300394290,0.01112573,111300.0,111290.0,1.4740231]
[1757300394853,0.01112573,111300.0,111290.0,1.4810231]
[1757300395088,0.01112573,111300.0,111290.0,1.7442231]
[1757300396317,0.01112573,111300.0,111290.0,1.5937031]
[1757300396529,0.01112573,111300.0,111290.0,1.7442231]
[1757300396743,0.01112573,111300.0,111290.0,1.5937031]
[1757300396977,0.01112573,111300.0,111290.0,1.5556993]
[1757300397188,0.01112573,111300.0,111290.0,1.7442231]
[1757300398273,0.01112573,111300.0,111290.0,1.5556993]
[1757300398484,0.01112573,111300.0,111290.0,1.7442231]
[1757300400550,0.01112573,111300.0,111290.0,1.9327469]
[1757300400754,0.01112573,111300.0,111290.0,1.9563269]
[1757300401684,0.01112573,111300.0,111290.0,1.6931269]
[1757300401845,0.00054867,111320.0,111310.0,0.72914099]
[1757300402020,0.00054867,111320.0,111310.0,1.04057698]
[1757300402222,0.00054867,111320.0,111310.0,0.85415318]
[1757300402447,0.00054867,111320.0,111310.0,1.04582698]
[1757300402746,0.00054867,111320.0,111310.0,1.07280165]
[1757300403866,0.00354867,111320.0,111310.0,1.07280165]
[1757300404052,0.00354867,111320.0,111310.0,1.08160216]
[1757300404583,0.00454867,111320.0,111310.0,1.08160216]
[1757300405016,0.00454867,111320.0,111310.0,1.31092533]
[1757300405236,0.00454867,111320.0,111310.0,1.12240153]
[1757300405454,0.00354867,111320.0,111310.0,1.31092533]
[1757300405665,0.00154867,111320.0,111310.0,1.31892533]
[1757300406098,0.00154867,111320.0,111310.0,1.72692533]
[1757300406324,1e-08,111320.0,111310.0,1.81461017]
[1757300406580,1e-08,111320.0,111310.0,1.75050533]
[1757300406795,1e-08,111320.0,111310.0,1.83086907]
[1757300407242,1e-08,111320.0,111310.0,1.83082907]
[1757300407465,1e-08,111320.0,111310.0,1.75046533]
[1757300407681,1e-08,111320.0,111310.0,1.59998533]
[1757300407894,1e-08,111320.0,111310.0,1.75046533]
[1757300408335,1e-08,111320.0,111310.0,1.59998533]
[1757300408563,1e-08,111320.0,111310.0,1.6258844]
[1757300408774,1e-08,111320.0,111310.0,1.6639282]
[1757300409208,1e-08,111320.0,111310.0,1.8144082]
[1757300410873,1e-08,111320.0,111310.0,1.6639282]
[1757300411082,1e-08,111320.0,111310.0,1.7908282]
[1757300411239,1e-08,111320.0,111310.0,1.6023044]
[1757300412116,1e-08,111320.0,111310.0,1.7908282]
[1757300414091,1e-08,111320.0,111310.0,1.4137806]
[1757300414332,1e-08,111320.0,111310.0,1.7908282]
[1757300414560,1e-08,111320.0,111310.0,0.83841891]
[1757300414772,1e-08,111320.0,111310.0,0.98885891]
[1757300414989,1e-08,111320.0,111310.0,1.34979773]
[1757300415201,1e-08,111320.0,111310.0,1.51738271]
[1757300415413,1e-08,111320.0,111310.0,1.34979773]
[1757300415859,1e-08,111320.0,111310.0,0.94979773]
[1757300416288,1e-08,111320.0,111310.0,0.79935773]
[1757300416494,1e-08,111320.0,111310.0,0.94979773]